fUST/lending_fUST_20250129
["ID","MTS","AMOUNT","RATE_DAILY","PERIOD"]
[350744350,1738098789401,240.50421,0.00013973,2]
[350744355,1738099613139,540.3224408,0.00015101,2]
[350744356,1738099648732,240.279032,0.00013973,2]
[350744391,1738099832510,-300.0,0.00015411,2]
[350744392,1738099832520,-24900.0,0.00015412,2]
[350744393,1738099832530,-256.3165486,0.00015445,2]
[350744394,1738099832541,-166.0,0.00015455,2]
[350744395,1738099832551,-155.13776179,0.00016338,2]
[350744397,1738099832560,-500.0,0.00016437,2]
[350744399,1738099832570,-500.0,0.00016437,2]
[350744401,1738099832580,-500.0,0.00016437,2]
[350744403,1738099832589,-500.0,0.00016437,2]
[350744405,1738099832599,-500.0,0.00016437,2]
[350744406,1738099832609,-500.0,0.00016437,2]
[350744408,1738099832619,-500.0,0.00016437,2]
[350744410,1738099832628,-500.0,0.00016437,2]
[350744412,1738099832638,-300.37416008,0.00016437,2]
[350744414,1738099832647,-500.0,0.00016437,2]
[350744416,1738099832659,-500.0,0.00016437,2]
[350744418,1738099832668,-500.0,0.00016437,2]
[350744420,1738099832678,-650.0,0.00016437,2]
[350744422,1738099832687,-500.0,0.00016437,2]
[350744424,1738099832697,-500.0,0.00016437,2]
[350744426,1738099832706,-500.0,0.00016437,2]
[350744428,1738099832715,-500.0,0.00016437,2]
[350744430,1738099832725,-500.0,0.00016437,2]
[350744432,1738099832735,-500.0,0.00016437,2]
[350744434,1738099832744,-500.0,0.00016437,2]
[350744436,1738099832754,-500.0,0.00016437,2]
[350744438,1738099832763,-500.0,0.00016437,2]
[350744440,1738099832773,-500.0,0.00016437,2]
[350744442,1738099832782,-500.0,0.00016437,2]
[350744444,1738099832792,-278.39434276,0.00016437,2]
[350744446,1738099832801,-470.43579439,0.00016438,2]
[350744448,1738099832811,-500.0,0.00016438,2]
[350744450,1738099832822,-493.90380827,0.00016438,2]
[350744452,1738099832832,-500.66982686,0.00016438,2]
[350744453,1738099832841,-204.84103073,0.00016438,2]
[350744455,1738099832850,-500.0,0.00016438,2]
[350744457,1738099832860,-500.0,0.00016438,2]
[350744458,1738099832870,-172.37297848,0.00016438,2]
[350744459,1738099832880,-500.0,0.00016438,2]
[350744460,1738099832890,-500.0,0.00016438,2]
[350744461,1738099832900,-500.0,0.00016438,2]
[350744462,1738099832912,-500.0,0.00016438,2]
[350744463,1738099832922,-500.0,0.00016438,2]
[350744464,1738099832932,-500.0,0.00016438,2]
[350744465,1738099832942,-500.0,0.00016438,2]
[350744466,1738099832951,-500.0,0.00016438,2]
[350744467,1738099832962,-500.0,0.00016438,2]
[350744468,1738099832972,-258.75745228,0.00016438,2]
[350744469,1738099832982,-500.0,0.00016438,2]
[350744470,1738099832992,-504.80503079,0.00016438,2]
[350744471,1738099833001,-471.75,0.00016438,2]
[350744472,1738099833011,-500.0,0.00016438,2]
[350744473,1738099833021,-500.0,0.00016438,2]
[350744474,1738099833030,-500.0,0.00016438,2]
[350744475,1738099833039,-500.0,0.00016438,2]
[350744476,1738099833049,-379.44993432,0.00016438,2]
[350744477,1738099833058,-500.0,0.00016438,2]
[350744478,1738099833068,-500.0,0.00016438,2]
[350744479,1738099833078,-500.0,0.00016438,2]
[350744480,1738099833089,-500.0,0.00016438,2]
[350744481,1738099833099,-500.0,0.00016438,2]
[350744482,1738099833109,-501.87683036,0.00016438,2]
[350744483,1738099833119,-500.0,0.00016438,2]
[350744484,1738099833129,-500.0,0.00016438,2]
[350744485,1738099833139,-500.0,0.00016438,2]
[350744486,1738099833150,-500.0,0.00016438,2]
[350744487,1738099833160,-500.0,0.00016438,2]
[350744488,1738099833170,-500.0,0.00016438,2]
[350744489,1738099833180,-500.0,0.00016438,2]
[350744490,1738099833190,-500.0,0.00016438,2]
[350744491,1738099833200,-500.0,0.00016438,2]
[350744492,1738099833212,-500.0,0.00016438,2]
[350744493,1738099833222,-500.0,0.00016438,2]
[350744494,1738099833232,-500.0,0.00016438,2]
[350744495,1738099833244,-500.0,0.00016438,2]
[350744496,1738099833254,-501.05646591,0.00016438,2]
[350744497,1738099833264,-500.0,0.00016438,2]
[350744498,1738099833274,-500.0,0.00016438,2]
[350744499,1738099833283,-500.0,0.00016438,2]
[350744500,1738099833294,-501.10928734,0.00016438,2]
[350744501,1738099833304,-500.0,0.00016438,2]
[350744502,1738099833314,-500.0,0.00016438,2]
[350744503,1738099833324,-500.0,0.00016438,2]
[350744504,1738099833334,-500.0,0.00016438,2]
[350744505,1738099833344,-500.0,0.00016438,2]
[350744506,1738099833353,-500.0,0.00016438,2]
[350744507,1738099833363,-502.08962733,0.00016438,2]
[350744508,1738099833373,-500.0,0.00016438,2]
[350744509,1738099833384,-505.69561747,0.00016438,2]
[350744510,1738099833394,-500.0,0.00016438,2]
[350744511,1738099833404,-500.0,0.00016438,2]
[350744512,1738099833419,-500.68510758,0.00016438,2]
[350744513,1738099833428,-500.0,0.00016438,2]
[350744514,1738099833438,-500.0,0.00016438,2]
[350744515,1738099833447,-500.0,0.00016438,2]
[350744516,1738099833458,-500.0,0.00016438,2]
[350744517,1738099833467,-236.06512945,0.00016438,2]
[350744518,1738099833477,-503.7740193,0.00016438,2]
[350744519,1738099833487,-500.0,0.00016438,2]
[350744520,1738099833498,-500.0,0.00016438,2]
[350744521,1738099833511,-501.87035283,0.00016438,2]
[350744522,1738099833526,-500.0,0.00016438,2]
[350744523,1738099833540,-270.37976325,0.00016438,2]
[350744524,1738099833555,-500.0,0.00016438,2]
[350744525,1738099833569,-500.0,0.00016438,2]
[350744526,1738099833582,-500.0,0.00016438,2]
[350744527,1738099833593,-500.0,0.00016438,2]
[350744528,1738099833604,-500.0,0.00016438,2]
[350744529,1738099833617,-502.46122873,0.00016438,2]
[350744530,1738099833631,-238.37199435,0.00016438,2]
[350744531,1738099833643,-503.95237417,0.00016438,2]
[350744532,1738099833659,-397.08,0.00016438,2]
[350744533,1738099833671,-500.0,0.00016438,2]
[350744534,1738099833684,-500.0,0.00016438,2]
[350744535,1738099833696,-500.0,0.00016438,2]
[350744536,1738099833709,-500.0,0.00016438,2]
[350744537,1738099833722,-500.0,0.00016438,2]
[350744538,1738099833734,-500.0,0.00016438,2]
[350744539,1738099833747,-500.0,0.00016438,2]
[350744540,1738099833761,-500.39477218,0.00016438,2]
[350744541,1738099833774,-500.68353555,0.00016438,2]
[350744542,1738099833787,-500.0,0.00016438,2]
[350744543,1738099833800,-500.0,0.00016438,2]
[350744544,1738099833814,-552.53851737,0.00016438,2]
[350744545,1738099833825,-500.0,0.00016438,2]
[350744546,1738099833838,-500.0,0.00016438,2]
[350744547,1738099833851,-500.0,0.00016438,2]
[350744548,1738099833864,-500.0,0.00016438,2]
[350744549,1738099833876,-500.0,0.00016438,2]
[350744550,1738099833891,-502.56340079,0.00016438,2]
[350744551,1738099833904,-500.0,0.00016438,2]
[350744552,1738099833917,-500.0,0.00016438,2]
[350744553,1738099833929,-500.0,0.00016438,2]
[350744554,1738099833943,-500.0,0.00016438,2]
[350744555,1738099833954,-500.0,0.00016438,2]
[350744556,1738099833966,-500.0,0.00016438,2]
[350744557,1738099833977,-500.0,0.00016438,2]
[350744558,1738099833989,-355.3931408,0.00016438,2]
[350744559,1738099834001,-500.0,0.00016438,2]
[350744560,1738099834014,-500.0,0.00016438,2]
[350744561,1738099834027,-500.0,0.00016438,2]
[350744562,1738099834040,-567.1637288,0.00016438,2]
[350744563,1738099834053,-502.58621,0.00016438,2]
[350744564,1738099834067,-500.0,0.00016438,2]
[350744565,1738099834080,-292.9215997,0.00016438,2]
[350744566,1738099834092,-500.0,0.00016438,2]
[350744567,1738099834106,-500.0,0.00016438,2]
[350744568,1738099834118,-500.0,0.00016438,2]
[350744569,1738099834132,-500.0,0.00016438,2]
[350744570,1738099834145,-500.0,0.00016438,2]
[350744571,1738099834165,-500.0,0.00016438,2]
[350744572,1738099834176,-500.0,0.00016438,2]
[350744573,1738099834187,-500.0,0.00016438,2]
[350744574,1738099834198,-500.0,0.00016438,2]
[350744575,1738099834209,-500.0,0.00016438,2]
[350744576,1738099834220,-500.0,0.00016438,2]
[350744577,1738099834232,-500.0,0.00016438,2]
[350744578,1738099834245,-500.0,0.00016438,2]
[350744579,1738099834256,-500.0,0.00016438,2]
[350744580,1738099834271,-579.59134964,0.00016438,2]
[350744581,1738099834283,-500.0,0.00016438,2]
[350744582,1738099834299,-500.0,0.00016438,2]
[350744583,1738099834310,-500.0,0.00016438,2]
[350744584,1738099834321,-500.0,0.00016438,2]
[350744585,1738099834332,-500.0,0.00016438,2]
[350744586,1738099834344,-618.64597035,0.00016438,2]
[350744587,1738099834356,-500.0,0.00016438,2]
[350744588,1738099834369,-500.0,0.00016438,2]
[350744589,1738099834385,-500.0,0.00016438,2]
[350744590,1738099834398,-339.12,0.00016438,2]
[350744591,1738099834409,-500.0,0.00016438,2]
[350744592,1738099834419,-500.0,0.00016438,2]
[350744593,1738099834430,-500.0,0.00016438,2]
[350744594,1738099834442,-500.0,0.00016438,2]
[350744595,1738099834453,-500.0,0.00016438,2]
[350744596,1738099834465,-501.09031443,0.00016438,2]
[350744597,1738099834476,-500.0,0.00016438,2]
[350744598,1738099834487,-500.0,0.00016438,2]
[350744599,1738099834498,-500.0,0.00016438,2]
[350744600,1738099834509,-500.0,0.00016438,2]
[350744601,1738099834520,-500.0,0.00016438,2]
[350744602,1738099834532,-501.55503743,0.00016438,2]
[350744603,1738099834544,-500.0,0.00016438,2]
[350744604,1738099834557,-500.0,0.00016438,2]
[350744605,1738099834568,-500.0,0.00016438,2]
[350744606,1738099834580,-500.0,0.00016438,2]
[350744607,1738099834592,-500.0,0.00016438,2]
[350744608,1738099834604,-500.0,0.00016438,2]
[350744609,1738099834616,-500.0,0.00016438,2]
[350744610,1738099834628,-500.0,0.00016438,2]
[350744611,1738099834640,-500.0,0.00016438,2]
[350744612,1738099834651,-1434.26,0.00016438,2]
[350744613,1738099834667,-500.0,0.00016438,2]
[350744614,1738099834679,-500.0,0.00016438,2]
[350744615,1738099834691,-158.53315763,0.00016438,2]
[350744616,1738099834813,-341.46684237,0.00016438,2]
[350744617,1738099834825,-24.57039141,0.00016438,2]
[350744626,1738099838286,-475.42960859,0.00016438,2]
[350744627,1738099838297,-500.0,0.00016438,2]
[350744628,1738099838307,-1000.0,0.00016438,2]
[350744629,1738099838316,-500.0,0.00016438,2]
[350744630,1738099838326,-500.0,0.00016438,2]
[350744631,1738099838335,-500.0,0.00016438,2]
[350744632,1738099838346,-503.35757614,0.00016438,2]
[350744633,1738099838356,-500.0,0.00016438,2]
[350744634,1738099838365,-2883.41,0.00016438,2]
[350744635,1738099838375,-652.45,0.00016438,2]
[350744636,1738099838387,-500.0,0.00016438,2]
[350744637,1738099838400,-500.0,0.00016438,2]
[350744638,1738099838409,-500.0,0.00016438,2]
[350744639,1738099838420,-500.0,0.00016438,2]
[350744640,1738099838430,-500.0,0.00016438,2]
[350744641,1738099838439,-500.0,0.00016438,2]
[350744642,1738099838450,-500.0,0.00016438,2]
[350744643,1738099838459,-500.0,0.00016438,2]
[350744644,1738099838473,-639.87,0.00016438,2]
[350744645,1738099838483,-267.88330129,0.00016438,2]
[350744646,1738099838498,-232.11669871,0.00016438,2]
[350744647,1738099838508,-528.31,0.00016438,2]
[350744648,1738099838518,-259.57330129,0.00016438,2]
[350744649,1738099838529,-240.42669871,0.00016438,2]
[350744650,1738099838539,-500.0,0.00016438,2]
[350744651,1738099838548,-547.26,0.00016438,2]
[350744652,1738099838558,-1643.83,0.00016438,2]
[350744653,1738099838567,-500.0,0.00016438,2]
[350744654,1738099838576,-880.51,0.00016438,2]
[350744655,1738099838586,-500.0,0.00016438,2]
[350744656,1738099838595,-349.7591446,0.00016438,2]
[350744657,1738099838607,-150.2408554,0.00016438,2]
[350744658,1738099838616,-500.0,0.00016438,2]
[350744659,1738099838625,-202.72900753,0.00016438,2]
[350744675,1738099840487,-297.27099247,0.00016438,2]
[350744676,1738099840496,-241.01684495,0.00016438,2]
[350744677,1738099840507,-109.65315505,0.00016438,2]
[350744678,1738099840517,-500.0,0.00016438,2]
[350744679,1738099840526,-126.59900753,0.00016438,2]
[350744680,1738099840537,-373.40099247,0.00016438,2]
[350744681,1738099840546,-500.0,0.00016438,2]
[350744682,1738099840555,-535.66,0.00016438,2]
[350744683,1738099840564,-500.0,0.00016468,2]
[350744684,1738099840573,-500.0,0.00016473,2]
[350744685,1738099840583,-500.0,0.00016574,2]
[350744686,1738099840592,-500.0,0.00016574,2]
[350744687,1738099840601,-160.10414572,0.00016575,2]
[350744688,1738099840610,-500.0,0.00016575,2]
[350744689,1738099840619,-335.79061621,0.00016575,2]
[350744690,1738099840628,-500.0,0.00016575,2]
[350744691,1738099840638,-448.03858931,0.00016575,2]
[350744692,1738099840647,-500.0,0.00016575,2]
[350744693,1738099840656,-452.15,0.00016575,2]
[350744694,1738099840666,-500.0,0.00016575,2]
[350744695,1738099840675,-500.0,0.00016575,2]
[350744696,1738099840685,-500.0,0.00016575,2]
[350744697,1738099840694,-534.12986993,0.00016575,2]
[350744698,1738099840703,-500.0,0.00016575,2]
[350744699,1738099840713,-500.0,0.00016575,2]
[350744700,1738099840723,-500.0,0.00016575,2]
[350744701,1738099840733,-500.0,0.00016575,2]
[350744702,1738099840742,-500.0,0.00016575,2]
[350744703,1738099840752,-391.55804599,0.00016575,2]
[350744704,1738099840762,-572.15,0.00016575,2]
[350744705,1738099840772,-376.28465338,0.00016575,2]
[350744706,1738099840781,-581.72,0.00016575,2]
[350744707,1738099840790,-500.0,0.00016575,2]
[350744708,1738099840801,-5.57512211,0.00016575,2]
[350744709,1738099840814,-629.68042673,0.00016575,2]
[350744710,1738099840823,-564.72,0.00016575,2]
[350744711,1738099840832,-500.0,0.00016575,2]
[350744712,1738099840842,-500.0,0.00016575,2]
[350744713,1738099840852,-500.0,0.00016575,2]
[350744714,1738099840862,-500.0,0.00016575,2]
[350744715,1738099840871,-500.0,0.00016575,2]
[350744716,1738099840881,-500.0,0.00016575,2]
[350744717,1738099840891,-500.0,0.00016575,2]
[350744718,1738099840900,-377.72,0.00016575,2]
[350744719,1738099840910,-500.0,0.00016575,2]
[350744720,1738099840921,-500.0,0.00016575,2]
[350744721,1738099840931,-313.45,0.00016575,2]
[350744722,1738099840941,-500.0,0.00016575,2]
[350744723,1738099840951,-500.0,0.00016575,2]
[350744724,1738099840960,-500.0,0.00016575,2]
[350744725,1738099840970,-500.0,0.00016575,2]
[350744726,1738099840979,-500.0,0.00016575,2]
[350744727,1738099840989,-643.60969868,0.00016575,2]
[350744728,1738099841001,-790.65030132,0.00016575,2]
[350744729,1738099841011,-500.0,0.00016575,2]
[350744730,1738099841020,-554.73207523,0.00016575,2]
[350744731,1738099841031,-500.0,0.00016575,2]
[350744732,1738099841040,-500.0,0.00016575,2]
[350744733,1738099841050,-2883.41,0.00016575,2]
[350744734,1738099841060,-652.45,0.00016575,2]
[350744735,1738099841070,-500.0,0.00016575,2]
[350744736,1738099841079,-548.58,0.00016575,2]
[350744737,1738099841089,-500.0,0.00016575,2]
[350744738,1738099841099,-500.0,0.00016575,2]
[350744739,1738099841108,-639.87,0.00016575,2]
[350744740,1738099841118,-528.31,0.00016575,2]
[350744741,1738099841128,-500.0,0.00016575,2]
[350744742,1738099841138,-500.0,0.00016575,2]
[350744743,1738099841148,-547.26,0.00016575,2]
[350744744,1738099841158,-1643.83,0.00016575,2]
[350744745,1738099841168,-880.51,0.00016575,2]
[350744746,1738099841178,-257.00898464,0.00016575,2]
[350744747,1738099841187,-500.0,0.00016575,2]
[350744748,1738099841198,-173.87781719,0.00016575,2]
[350744749,1738099841207,-500.0,0.00016575,2]
[350744750,1738099841218,-500.0,0.00016575,2]
[350744751,1738099841227,-535.66,0.00016575,2]
[350744752,1738099841237,-3000.0,0.00016612,2]
[350744753,1738099841246,-279.15891201,0.00016687,2]
[350744754,1738099841257,-500.0,0.00016711,2]
[350744755,1738099841267,-500.0,0.00016711,2]
[350744756,1738099841276,-500.0,0.00016712,2]
[350744757,1738099841285,-500.0,0.00016712,2]
[350744758,1738099841295,-500.0,0.00016712,2]
[350744759,1738099841305,-500.0,0.00016712,2]
[350744760,1738099841315,-500.0,0.00016712,2]
[350744761,1738099841325,-172.94,0.00016712,2]
[350744762,1738099841335,-310.48475393,0.00016712,2]
[350744763,1738099841345,-335.30052473,0.00016712,2]
[350744764,1738099841355,-263.83910326,0.00016712,2]
[350744765,1738099841365,-236.89033343,0.00016712,2]
[350744766,1738099841374,-564.50936457,0.00016712,2]
[350744767,1738099841388,-500.0,0.00016712,2]
[350744768,1738099841397,-534.85976941,0.00016712,2]
[350744769,1738099841407,-517.25550807,0.00016712,2]
[350744770,1738099841418,-500.0,0.00016712,2]
[350744771,1738099841428,-500.0,0.00016712,2]
[350744772,1738099841438,-1434.26,0.00016712,2]
[350744773,1738099841448,-500.0,0.00016712,2]
[350744774,1738099841458,-2883.41,0.00016712,2]
[350744775,1738099841468,-652.45,0.00016712,2]
[350744776,1738099841479,-500.0,0.00016712,2]
[350744777,1738099841488,-500.0,0.00016712,2]
[350744778,1738099841498,-500.0,0.00016712,2]
[350744779,1738099841507,-639.87,0.00016712,2]
[350744780,1738099841517,-528.31,0.00016712,2]
[350744781,1738099841527,-500.0,0.00016712,2]
[350744782,1738099841536,-500.0,0.00016712,2]
[350744783,1738099841546,-547.26,0.00016712,2]
[350744784,1738099841556,-1643.83,0.00016712,2]
[350744785,1738099841566,-880.51,0.00016712,2]
[350744786,1738099841576,-500.0,0.00016712,2]
[350744787,1738099841586,-500.0,0.00016712,2]
[350744788,1738099841595,-500.0,0.00016712,2]
[350744789,1738099841605,-535.66,0.00016712,2]
[350744790,1738099841615,-491.44434751,0.00016776,2]
[350744791,1738099841625,-10.37955302,0.00016849,2]
[350744792,1738099841638,-489.62044698,0.00016849,2]
[350744793,1738099841647,-188.3,0.00016849,2]
[350744794,1738099841657,-500.0,0.00016849,2]
[350744795,1738099841667,-500.0,0.00016849,2]
[350744796,1738099841677,-500.0,0.00016849,2]
[350744797,1738099841687,-1434.26,0.00016849,2]
[350744798,1738099841696,-500.0,0.00016849,2]
[350744799,1738099841705,-2883.41,0.00016849,2]
[350744800,1738099841715,-652.45,0.00016849,2]
[350744801,1738099841725,-500.0,0.00016849,2]
[350744802,1738099841736,-500.0,0.00016849,2]
[350744803,1738099841745,-500.0,0.00016849,2]
[350744804,1738099841755,-639.87,0.00016849,2]
[350744805,1738099841766,-528.31,0.00016849,2]
[350744806,1738099841776,-500.0,0.00016849,2]
[350744807,1738099841786,-500.0,0.00016849,2]
[350744808,1738099841796,-547.26,0.00016849,2]
[350744809,1738099841806,-1643.83,0.00016849,2]
[350744810,1738099841816,-880.51,0.00016849,2]
[350744811,1738099841826,-500.0,0.00016849,2]
[350744812,1738099841836,-500.0,0.00016849,2]
[350744813,1738099841845,-500.0,0.00016849,2]
[350744814,1738099841855,-535.66,0.00016849,2]
[350744815,1738099841865,-420.0,0.0001686,2]
[350744816,1738099841875,-233.39,0.000169,2]
[350744817,1738099841884,-500.0,0.00016985,2]
[350744818,1738099841894,-500.0,0.00016986,2]
[350744819,1738099841903,-379.26,0.00016986,2]
[350744820,1738099841913,-500.0,0.00016986,2]
[350744821,1738099841925,-500.0,0.00016986,2]
[350744822,1738099841934,-1434.26,0.00016986,2]
[350744823,1738099841944,-500.0,0.00016986,2]
[350744824,1738099841954,-2883.41,0.00016986,2]
[350744825,1738099841964,-652.45,0.00016986,2]
[350744826,1738099841973,-500.0,0.00016986,2]
[350744827,1738099841983,-500.0,0.00016986,2]
[350744828,1738099841993,-500.0,0.00016986,2]
[350744829,1738099842002,-639.87,0.00016986,2]
[350744830,1738099842012,-528.31,0.00016986,2]
[350744831,1738099842022,-500.0,0.00016986,2]
[350744832,1738099842031,-500.0,0.00016986,2]
[350744833,1738099842041,-547.26,0.00016986,2]
[350744834,1738099842050,-1643.83,0.00016986,2]
[350744835,1738099842059,-880.51,0.00016986,2]
[350744836,1738099842069,-500.0,0.00016986,2]
[350744837,1738099842078,-349.69601293,0.00016986,2]
[350744838,1738099842088,-500.0,0.00016986,2]
[350744839,1738099842097,-535.66,0.00016986,2]
[350744840,1738099842107,-1000.0,0.00017021,2]
[350744841,1738099842116,-500.0,0.00017123,2]
[350744842,1738099842126,-500.0,0.00017123,2]
[350744843,1738099842136,-500.0,0.00017123,2]
[350744844,1738099842147,-1226.81198247,0.00017123,2]
[350744845,1738099842160,-207.44801753,0.00017123,2]
[350744846,1738099842171,-500.0,0.00017123,2]
[350744847,1738099842180,-1007.8458017,0.00017123,2]
[350744848,1738099842192,-1875.5641983,0.00017123,2]
[350744849,1738099842201,-558.216215,0.00017123,2]
[350744850,1738099842213,-94.233785,0.00017123,2]
[350744851,1738099842224,-500.0,0.00017123,2]
[350744852,1738099842233,-500.0,0.00017123,2]
[350744853,1738099842242,-500.0,0.00017123,2]
[350744854,1738099842252,-306.77368817,0.00017123,2]
[350744855,1738099842263,-333.09631183,0.00017123,2]
[350744856,1738099842273,-528.31,0.00017123,2]
[350744857,1738099842283,-500.0,0.00017123,2]
[350744858,1738099842292,-500.0,0.00017123,2]
[350744859,1738099842302,-547.26,0.00017123,2]
[350744860,1738099842312,-1643.83,0.00017123,2]
[350744861,1738099842321,-880.51,0.00017123,2]
[350744862,1738099842331,-500.0,0.00017123,2]
[350744863,1738099842341,-637.82086953,0.00017123,2]
[350744864,1738099842350,-535.66,0.00017123,2]
[350744865,1738099842360,-155.13776177,0.00017251,2]
[350744866,1738099842370,-575.06,0.0001726,2]
[350744867,1738099842380,-500.0,0.0001726,2]
[350744868,1738099842390,-500.0,0.0001726,2]
[350744869,1738099842402,-1434.26,0.0001726,2]
[350744870,1738099842412,-500.0,0.0001726,2]
[350744871,1738099842423,-253.39029229,0.0001726,2]
[350744872,1738099842435,-1956.418382,0.0001726,2]
[350744885,1738099844327,-500.0,0.00016438,2]
[350744886,1738099844337,-500.0,0.00016438,2]
[350744887,1738099844348,-500.0,0.00016575,2]
[350744888,1738099844357,-505.34879406,0.00016712,2]
[350744889,1738099844367,-443.89841315,0.0001726,2]
[350744890,1738099844391,-851.54,0.00016438,2]
[350744891,1738099844403,-229.70291256,0.0001726,2]
[350744892,1738099844413,-111.34708742,0.0001726,2]
[350744893,1738099844427,-259.0,0.0001726,2]
[350744894,1738099844439,-282.10291258,0.0001726,2]
[350744895,1738099844448,-340.93165828,0.0001726,2]
[350744896,1738099844464,-159.06834172,0.0001726,2]
[350744897,1738099844478,-500.0,0.0001726,2]
[350744898,1738099844488,-500.0,0.0001726,2]
[350744900,1738099844497,-639.87,0.0001726,2]
[350744902,1738099844508,-528.31,0.0001726,2]
[350744904,1738099844518,-326.79621704,0.0001726,2]
[350744906,1738099844527,-313.65866494,0.0001726,2]
[350744908,1738099844536,-547.26,0.0001726,2]
[350744910,1738099844546,-1511.64073669,0.0001726,2]
[350744940,1738099846516,-500.0,0.00016438,2]
[350744941,1738099846526,-853.61,0.00016438,2]
[350744942,1738099846537,-851.54,0.00016575,2]
[350744943,1738099846547,-500.0,0.00016575,2]
[350744944,1738099846557,-851.54,0.00016712,2]
[350744945,1738099846567,-851.54,0.00016849,2]
[350744946,1738099846576,-851.54,0.00016986,2]
[350744947,1738099846586,-851.54,0.00017123,2]
[350744948,1738099846597,-132.18926331,0.0001726,2]
[350744949,1738099846607,-303.7744275,0.0001726,2]
[350744950,1738099846619,-576.7355725,0.0001726,2]
[350744951,1738099846630,-500.0,0.0001726,2]
[350744952,1738099846640,-535.66,0.0001726,2]
[350744953,1738099846650,-851.54,0.0001726,2]
[350744954,1738099846659,-500.0,0.00017397,2]
[350744955,1738099846669,-500.0,0.00017397,2]
[350744956,1738099846678,-1434.26,0.00017397,2]
[350744957,1738099846687,-500.0,0.00017397,2]
[350744958,1738099846697,-2883.41,0.00017397,2]
[350744959,1738099846706,-652.45,0.00017397,2]
[350744960,1738099846716,-500.0,0.00017397,2]
[350744961,1738099846726,-500.0,0.00017397,2]
[350744962,1738099846735,-500.0,0.00017397,2]
[350744963,1738099846745,-639.87,0.00017397,2]
[350744964,1738099846755,-528.31,0.00017397,2]
[350744965,1738099846764,-547.26,0.00017397,2]
[350744966,1738099846774,-1643.83,0.00017397,2]
[350744967,1738099846783,-880.51,0.00017397,2]
[350744968,1738099846793,-500.0,0.00017397,2]
[350744969,1738099846803,-535.66,0.00017397,2]
[350744970,1738099846812,-3000.0,0.00017434,2]
[350744971,1738099846822,-500.0,0.00017534,2]
[350744972,1738099846831,-500.0,0.00017534,2]
[350744973,1738099846840,-1434.26,0.00017534,2]
[350744974,1738099846853,-500.0,0.00017534,2]
[350744975,1738099846863,-2883.41,0.00017534,2]
[350744976,1738099846873,-652.45,0.00017534,2]
[350744977,1738099846885,-500.0,0.00017534,2]
[350744978,1738099846899,-512.02546002,0.00017534,2]
[350744979,1738099846910,-500.0,0.00017534,2]
[350744980,1738099846919,-639.87,0.00017534,2]
[350744981,1738099846929,-528.31,0.00017534,2]
[350744982,1738099846940,-547.26,0.00017534,2]
[350744983,1738099846951,-1643.83,0.00017534,2]
[350744984,1738099846963,-880.51,0.00017534,2]
[350744985,1738099846973,-264.47763191,0.00017534,2]
[350744986,1738099846982,-535.66,0.00017534,2]
[350744987,1738099846991,-500.0,0.00017564,2]